[Event "Live Chess"]
[Site "Chess.com"]
[Date "2023.05.21"]
[Round "-"]
[White "WelshTiger"]
[Black "SupremeTactician"]
[Result "1/2-1/2"]
[WhiteElo "2359"]
[BlackElo "2345"]
[TimeControl "300"]
[EndTime "17:12:01 PDT"]
[Termination "Game drawn by 50-move rule"]

1. e4 {[%clk 0:04:58.4]} 1... e5 {[%clk 0:04:58.3]} 2. Nf3 {[%clk 0:04:57.4]}
2... Nc6 {[%clk 0:04:57.4]} 3. d4 {[%clk 0:04:56.5]} 3... exd4 {[%clk
0:04:56.5]} 4. Bc4 {[%clk 0:04:56]} 4... Nf6 {[%clk 0:04:55.7]} 5. e5 {[%clk
0:04:55.3]} 5... d5 {[%clk 0:04:54.9]} 6. Bb5 {[%clk 0:04:54.7]} 6... Ne4 {[%clk
0:04:54.6]} 7. Nxd4 {[%clk 0:04:54]} 7... Bc5 {[%clk 0:04:54.3]} 8. Be3 {[%clk
0:04:48.4]} 8... O-O {[%clk 0:04:53.3]} 9. Nxc6 {[%clk 0:04:46.1]} 9... bxc6
{[%clk 0:04:51.8]} 10. Bxc5 {[%clk 0:04:45.4]} 10... Nxc5 {[%clk 0:04:51]} 11.
Bxc6 {[%clk 0:04:44.7]} 11... Rb8 {[%clk 0:04:45.5]} 12. Qxd5 {[%clk 0:04:42.2]}
12... Qxd5 {[%clk 0:04:42.1]} 13. Bxd5 {[%clk 0:04:40.7]} 13... Rxb2 {[%clk
0:04:41.7]} 14. Na3 {[%clk 0:04:32]} 14... Re8 {[%clk 0:04:25.1]} 15. O-O-O
{[%clk 0:04:30.7]} 15... Rb6 {[%clk 0:04:20.6]} 16. f4 {[%clk 0:04:26]} 16...
Bg4 {[%clk 0:04:17.5]} 17. Rd4 {[%clk 0:04:21.1]} 17... Reb8 {[%clk 0:04:05.9]}
18. h3 {[%clk 0:04:08.3]} 18... Be6 {[%clk 0:03:50.5]} 19. Rhd1 {[%clk
0:04:00.7]} 19... Ra6 {[%clk 0:03:47.5]} 20. Bxe6 {[%clk 0:03:47.5]} 20... Nxe6
{[%clk 0:03:46.4]} 21. R4d3 {[%clk 0:03:46.5]} 21... g6 {[%clk 0:03:43.3]} 22.
g3 {[%clk 0:03:45.4]} 22... Nc5 {[%clk 0:03:33.6]} 23. Rc3 {[%clk 0:03:44.4]}
23... Ne4 {[%clk 0:03:29.5]} 24. Re3 {[%clk 0:03:42.3]} 24... Nf2 {[%clk
0:03:22.2]} 25. Rd7 {[%clk 0:03:37.5]} 25... Nxh3 {[%clk 0:03:17.5]} 26. Rxc7
{[%clk 0:03:33.9]} 26... Nf2 {[%clk 0:03:16.3]} 27. Nc4 {[%clk 0:03:05]} 27...
Rxa2 {[%clk 0:03:07.3]} 28. Nd6 {[%clk 0:03:04.1]} 28... Ra1+ {[%clk 0:02:52.4]}
29. Kd2 {[%clk 0:03:02.5]} 29... Ng4 {[%clk 0:02:44.8]} 30. Rb3 {[%clk
0:02:51.5]} 30... Rxb3 {[%clk 0:02:35.1]} 31. cxb3 {[%clk 0:02:50.5]} 31... Rg1
{[%clk 0:02:35]} 32. Rxf7 {[%clk 0:02:19.9]} 32... Rxg3 {[%clk 0:02:29.7]} 33.
b4 {[%clk 0:02:18.5]} 33... Nf2 {[%clk 0:02:25.5]} 34. Rxa7 {[%clk 0:02:13.5]}
34... h5 {[%clk 0:02:23.6]} 35. e6 {[%clk 0:02:09.5]} 35... Rd3+ {[%clk
0:02:15.2]} 36. Ke2 {[%clk 0:02:08.7]} 36... Rxd6 {[%clk 0:02:14.8]} 37. e7
{[%clk 0:02:07.5]} 37... Re6+ {[%clk 0:02:11.4]} 38. Kxf2 {[%clk 0:02:06.2]}
38... Kf7 {[%clk 0:02:05.6]} 39. Kg3 {[%clk 0:01:59.8]} 39... Rxe7 {[%clk
0:01:55]} 40. Ra3 {[%clk 0:01:51.3]} 40... Rb7 {[%clk 0:01:51.5]} 41. Rb3 {[%clk
0:01:50.2]} 41... Kf6 {[%clk 0:01:51]} 42. b5 {[%clk 0:01:49]} 42... Rb6 {[%clk
0:01:50.2]} 43. Rb4 {[%clk 0:01:48]} 43... Kf5 {[%clk 0:01:49.5]} 44. Kh4 {[%clk
0:01:47.2]} 44... Kf6 {[%clk 0:01:45.7]} 45. Kg3 {[%clk 0:01:42.9]} 45... Kf5
{[%clk 0:01:45]} 46. Kf3 {[%clk 0:01:29.2]} 46... Ke6 {[%clk 0:01:34.5]} 47. Ke4
{[%clk 0:01:27.8]} 47... Kd6 {[%clk 0:01:28.8]} 48. Kd4 {[%clk 0:01:26.5]} 48...
Rb8 {[%clk 0:01:23]} 49. Rb3 {[%clk 0:01:22.5]} 49... Rf8 {[%clk 0:01:19]} 50.
Ke4 {[%clk 0:01:19.2]} 50... Kc7 {[%clk 0:01:16.2]} 51. Rg3 {[%clk 0:01:16.6]}
51... Rf6 {[%clk 0:01:14]} 52. Ke5 {[%clk 0:01:15.2]} 52... Rf5+ {[%clk
0:01:11.8]} 53. Ke6 {[%clk 0:01:14.1]} 53... Rxf4 {[%clk 0:01:08]} 54. Rxg6
{[%clk 0:01:11.6]} 54... Rb4 {[%clk 0:01:01.8]} 55. Rg5 {[%clk 0:01:10.3]} 55...
h4 {[%clk 0:01:01.2]} 56. Rh5 {[%clk 0:01:07.3]} 56... Kb6 {[%clk 0:01:00.3]}
57. Kd6 {[%clk 0:01:06.4]} 57... Rd4+ {[%clk 0:00:58.4]} 58. Ke6 {[%clk
0:01:04.2]} 58... h3 {[%clk 0:00:55.5]} 59. Rxh3 {[%clk 0:01:02.7]} 59... Kxb5
{[%clk 0:00:55]} 60. Rc3 {[%clk 0:01:01.4]} 60... Rc4 {[%clk 0:00:52.5]} 61.
Rb3+ {[%clk 0:01:00.8]} 61... Rb4 {[%clk 0:00:51.8]} 62. Rd3 {[%clk 0:00:59.8]}
62... Rc4 {[%clk 0:00:51.1]} 63. Kd5 {[%clk 0:00:59.1]} 63... Kb4 {[%clk
0:00:49.9]} 64. Rd1 {[%clk 0:00:57.4]} 64... Rc2 {[%clk 0:00:49.1]} 65. Kd4
{[%clk 0:00:55.6]} 65... Kb5 {[%clk 0:00:48.4]} 66. Kd3 {[%clk 0:00:54.3]} 66...
Rc7 {[%clk 0:00:47.2]} 67. Rb1+ {[%clk 0:00:53.1]} 67... Kc6 {[%clk 0:00:46.9]}
68. Kc4 {[%clk 0:00:52.2]} 68... Kd7+ {[%clk 0:00:46.8]} 69. Kd5 {[%clk
0:00:51.6]} 69... Ra7 {[%clk 0:00:45.8]} 70. Rb5 {[%clk 0:00:49.6]} 70... Kc7
{[%clk 0:00:45]} 71. Rc5+ {[%clk 0:00:48.4]} 71... Kd7 {[%clk 0:00:44.5]} 72.
Rb5 {[%clk 0:00:47.5]} 72... Kc7 {[%clk 0:00:44]} 73. Rb1 {[%clk 0:00:46.5]}
73... Ra5+ {[%clk 0:00:43.5]} 74. Kc4 {[%clk 0:00:45.9]} 74... Kd7 {[%clk
0:00:42.7]} 75. Rh1 {[%clk 0:00:44.6]} 75... Re5 {[%clk 0:00:41.4]} 76. Rh7+
{[%clk 0:00:43.6]} 76... Re7 {[%clk 0:00:41.3]} 77. Rh6 {[%clk 0:00:43]} 77...
Re6 {[%clk 0:00:40.5]} 78. Rh5 {[%clk 0:00:41.8]} 78... Kd6 {[%clk 0:00:39.6]}
79. Kd4 {[%clk 0:00:40.7]} 79... Rg6 {[%clk 0:00:38.6]} 80. Rh4 {[%clk
0:00:39.6]} 80... Kc6 {[%clk 0:00:37.8]} 81. Re4 {[%clk 0:00:37.9]} 81... Kd6
{[%clk 0:00:37.4]} 82. Rh4 {[%clk 0:00:36.8]} 82... Kc6 {[%clk 0:00:37]} 83. Ke5
{[%clk 0:00:36.1]} 83... Rg5+ {[%clk 0:00:36.1]} 84. Kf6 {[%clk 0:00:35.4]}
84... Rb5 {[%clk 0:00:36]} 85. Rh6 {[%clk 0:00:34.4]} 85... Rc5 {[%clk
0:00:34.9]} 86. Ke7+ {[%clk 0:00:33.5]} 86... Kb5 {[%clk 0:00:34.8]} 87. Kd6
{[%clk 0:00:33]} 87... Rc3 {[%clk 0:00:34]} 88. Kd5 {[%clk 0:00:32.5]} 88...
Rd3+ {[%clk 0:00:33.1]} 89. Ke4 {[%clk 0:00:32]} 89... Rd8 {[%clk 0:00:32.9]}
90. Rh5+ {[%clk 0:00:30.9]} 90... Kc4 {[%clk 0:00:32.6]} 91. Re5 {[%clk
0:00:30.1]} 91... Rd7 {[%clk 0:00:31.9]} 92. Re6 {[%clk 0:00:29.4]} 92... Rd8
{[%clk 0:00:31.1]} 93. Re5 {[%clk 0:00:29]} 93... Rf8 {[%clk 0:00:30.4]} 94. Rf5
{[%clk 0:00:28.2]} 94... Re8+ {[%clk 0:00:29.2]} 95. Re5 {[%clk 0:00:27.7]}
95... Rd8 {[%clk 0:00:28.9]} 96. Re6 {[%clk 0:00:26.7]} 96... Rd7 {[%clk
0:00:28.2]} 97. Re5 {[%clk 0:00:25.4]} 97... Rh7 {[%clk 0:00:27.9]} 98. Re6
{[%clk 0:00:24.8]} 98... Kc3 {[%clk 0:00:27.3]} 99. Ke3 {[%clk 0:00:23.6]} 99...
Rh1 {[%clk 0:00:26.2]} 100. Rc6+ {[%clk 0:00:22.9]} 100... Kb4 {[%clk
0:00:25.4]} 101. Kd3 {[%clk 0:00:22.8]} 101... Rd1+ {[%clk 0:00:24.3]} 102. Ke2
{[%clk 0:00:21.5]} 102... Ra1 {[%clk 0:00:22.7]} 103. Re6 {[%clk 0:00:21]}
103... Kc5 {[%clk 0:00:22]} 104. Re4 {[%clk 0:00:20.5]} 104... Kd5 {[%clk
0:00:21.4]} 105. Re3 {[%clk 0:00:20.1]} 105... Ra2+ {[%clk 0:00:21]} 106. Kf3
{[%clk 0:00:19.1]} 106... Kd4 {[%clk 0:00:20.6]} 107. Re4+ {[%clk 0:00:18.2]}
107... Kd5 {[%clk 0:00:20.2]} 108. Re3 {[%clk 0:00:17.8]} 108... Rh2 {[%clk
0:00:19.8]} 109. Rd3+ {[%clk 0:00:16.8]} 109... Kc4 {[%clk 0:00:18.7]} 1/2-1/2

[Event "Live Chess"]
[Site "Chess.com"]
[Date "2023.05.21"]
[Round "-"]
[White "Baturin_Yevgeniy"]
[Black "manthanit"]
[Result "1-0"]
[WhiteElo "1812"]
[BlackElo "1044"]
[TimeControl "300"]
[EndTime "17:12:28 PDT"]
[Termination "Baturin_Yevgeniy won by checkmate"]

1. d4 {[%clk 0:04:53.1]} 1... e6 {[%clk 0:04:58.8]} 2. Nf3 {[%clk 0:04:45.2]}
2... Nf6 {[%clk 0:04:57.4]} 3. Bg5 {[%clk 0:04:42.6]} 3... Be7 {[%clk
0:04:54.1]} 4. Nbd2 {[%clk 0:04:21.6]} 4... Nc6 {[%clk 0:04:52]} 5. e4 {[%clk
0:04:15.2]} 5... Nxe4 {[%clk 0:04:46.2]} 6. Nxe4 {[%clk 0:04:13.1]} 6... Bxg5
{[%clk 0:04:42.3]} 7. Nexg5 {[%clk 0:04:05.9]} 7... b6 {[%clk 0:04:37.6]} 8. Qd3
{[%clk 0:03:28.7]} 8... Bb7 {[%clk 0:04:32.5]} 9. Be2 {[%clk 0:03:23.6]} 9...
Nxd4 {[%clk 0:04:25.7]} 10. Qxd4 {[%clk 0:02:34.2]} 10... O-O {[%clk 0:04:01.1]}
11. Qd3 {[%clk 0:02:18.7]} 11... g6 {[%clk 0:03:55.6]} 12. Qd4 {[%clk
0:02:10.6]} 12... Rb8 {[%clk 0:03:53.3]} 13. Qh4 {[%clk 0:02:05.2]} 13... h5
{[%clk 0:02:35.2]} 14. g4 {[%clk 0:01:56.2]} 14... Bxf3 {[%clk 0:02:27.9]} 15.
Bxf3 {[%clk 0:01:51.8]} 15... Kg7 {[%clk 0:02:18.6]} 16. gxh5 {[%clk 0:01:42.7]}
16... Rh8 {[%clk 0:02:17.1]} 17. h6+ {[%clk 0:01:37.4]} 17... Kg8 {[%clk
0:02:06.7]} 18. h7+ {[%clk 0:01:27.3]} 18... Kg7 {[%clk 0:02:05.7]} 19. O-O-O
{[%clk 0:01:14.8]} 19... d5 {[%clk 0:02:02.6]} 20. Qd4+ {[%clk 0:01:10.4]} 20...
f6 {[%clk 0:01:57.6]} 21. Nxe6+ {[%clk 0:01:09.2]} 21... Kxh7 {[%clk 0:01:50.4]}
22. Nxd8 {[%clk 0:00:58.4]} 22... Rbxd8 {[%clk 0:01:49.1]} 23. Qxf6 {[%clk
0:00:55.8]} 23... Rhf8 {[%clk 0:01:08.5]} 24. Qh4+ {[%clk 0:00:51.4]} 24... Kg7
{[%clk 0:01:06.6]} 25. Bxd5 {[%clk 0:00:46.5]} 25... c6 {[%clk 0:00:48.7]} 26.
Be4 {[%clk 0:00:38.4]} 26... Rxd1+ {[%clk 0:00:44.9]} 27. Rxd1 {[%clk
0:00:38.3]} 27... Rf6 {[%clk 0:00:39.4]} 28. Rd7+ {[%clk 0:00:36.2]} 28... Kg8
{[%clk 0:00:36.2]} 29. Qh7+ {[%clk 0:00:33.2]} 29... Kf8 {[%clk 0:00:33.3]} 30.
Qg7+ {[%clk 0:00:31.2]} 30... Ke8 {[%clk 0:00:31.3]} 31. Qe7# {[%clk 0:00:30.7]}
1-0

[Event "Live Chess"]
[Site "Chess.com"]
[Date "2023.05.21"]
[Round "-"]
[White "GMHarry-youtube"]
[Black "KeithArkell"]
[Result "0-1"]
[WhiteElo "2035"]
[BlackElo "2608"]
[TimeControl "300"]
[EndTime "17:12:32 PDT"]
[Termination "KeithArkell won by resignation"]

1. e4 {[%clk 0:04:56.1]} 1... c6 {[%clk 0:04:59.1]} 2. d4 {[%clk 0:04:55.1]}
2... d5 {[%clk 0:04:58.4]} 3. exd5 {[%clk 0:04:54.8]} 3... cxd5 {[%clk
0:04:57.7]} 4. Nf3 {[%clk 0:04:54.2]} 4... Nf6 {[%clk 0:04:57]} 5. c3 {[%clk
0:04:53.7]} 5... Nc6 {[%clk 0:04:56.5]} 6. Bd3 {[%clk 0:04:52.9]} 6... Bg4
{[%clk 0:04:56]} 7. O-O {[%clk 0:04:52.3]} 7... e6 {[%clk 0:04:55.5]} 8. h3
{[%clk 0:04:51.4]} 8... Bxf3 {[%clk 0:04:54.3]} 9. Qxf3 {[%clk 0:04:50]} 9... a6
{[%clk 0:04:53.4]} 10. a4 {[%clk 0:04:48.4]} 10... Be7 {[%clk 0:04:52.3]} 11.
Bg5 {[%clk 0:04:47.6]} 11... O-O {[%clk 0:04:51.3]} 12. Nd2 {[%clk 0:04:46.8]}
12... Ne8 {[%clk 0:04:50.6]} 13. Bxe7 {[%clk 0:04:45.6]} 13... Qxe7 {[%clk
0:04:50.1]} 14. Qe2 {[%clk 0:04:44.8]} 14... Nd6 {[%clk 0:04:48.3]} 15. f4
{[%clk 0:04:43.8]} 15... g6 {[%clk 0:04:47.1]} 16. Nf3 {[%clk 0:04:42.1]} 16...
f5 {[%clk 0:04:43.7]} 17. Ne5 {[%clk 0:04:40.9]} 17... Ne4 {[%clk 0:04:42.1]}
18. Bxe4 {[%clk 0:04:39.1]} 18... dxe4 {[%clk 0:04:41.1]} 19. Qc4 {[%clk
0:04:37.1]} 19... Qd6 {[%clk 0:04:39]} 20. b4 {[%clk 0:04:32.4]} 20... Rac8
{[%clk 0:04:36.3]} 21. Qb3 {[%clk 0:04:29]} 21... Qd5 {[%clk 0:04:34.8]} 22.
Qxd5 {[%clk 0:04:26.4]} 22... exd5 {[%clk 0:04:34]} 23. Rac1 {[%clk 0:04:21.1]}
23... Nxe5 {[%clk 0:04:30.5]} 24. fxe5 {[%clk 0:04:20.1]} 24... Rc4 {[%clk
0:04:24.9]} 25. g4 {[%clk 0:04:08.1]} 25... f4 {[%clk 0:04:23]} 26. Kg2 {[%clk
0:03:59]} 26... g5 {[%clk 0:04:20.8]} 27. Rc2 {[%clk 0:03:50.2]} 27... Rfc8
{[%clk 0:04:19.6]} 28. Rfc1 {[%clk 0:03:48.8]} 28... Kf7 {[%clk 0:04:18.8]} 29.
Kf2 {[%clk 0:03:47.5]} 29... Kg6 {[%clk 0:04:17.2]} 30. Kg2 {[%clk 0:03:45.3]}
30... h5 {[%clk 0:04:16.3]} 31. a5 {[%clk 0:03:37.4]} 31... Rh8 {[%clk
0:04:11.9]} 32. Rh1 {[%clk 0:03:34.2]} 32... Rc6 {[%clk 0:04:10.6]} 33. c4
{[%clk 0:03:01.7]} 33... Rxc4 {[%clk 0:04:04.6]} 34. Rxc4 {[%clk 0:03:00.6]}
34... dxc4 {[%clk 0:04:03.8]} 35. d5 {[%clk 0:03:00.5]} 35... hxg4 {[%clk
0:04:02.3]} 36. Rc1 {[%clk 0:02:43.8]} 36... gxh3+ {[%clk 0:03:59.7]} 37. Kh2
{[%clk 0:02:42.8]} 37... g4 {[%clk 0:03:58.3]} 38. Rxc4 {[%clk 0:02:40.8]} 38...
g3+ {[%clk 0:03:57.5]} 39. Kh1 {[%clk 0:02:39.7]} 39... h2 {[%clk 0:03:52.9]}
40. Rc2 {[%clk 0:02:37.3]} 40... f3 {[%clk 0:03:52.1]} 41. d6 {[%clk 0:02:35.4]}
41... g2+ {[%clk 0:03:51.4]} 42. Rxg2+ {[%clk 0:02:34.6]} 42... fxg2+ {[%clk
0:03:50.9]} 43. Kxg2 {[%clk 0:02:34.5]} 43... h1=Q+ {[%clk 0:03:50.5]} 0-1

[Event "Live Chess"]
[Site "Chess.com"]
[Date "2023.05.21"]
[Round "-"]
[White "SupremeTactician"]
[Black "Conradical12"]
[Result "1-0"]
[WhiteElo "2345"]
[BlackElo "1604"]
[TimeControl "300"]
[EndTime "17:12:37 PDT"]
[Termination "SupremeTactician won by resignation"]

1. e4 {[%clk 0:04:59.5]} 1... e5 {[%clk 0:04:58.8]} 2. Nf3 {[%clk 0:04:58.7]}
2... Nc6 {[%clk 0:04:58.3]} 3. Nc3 {[%clk 0:04:58.3]} 3... Nf6 {[%clk 0:04:56]}
4. Bb5 {[%clk 0:04:58]} 4... Bc5 {[%clk 0:04:53.5]} 5. O-O {[%clk 0:04:55.5]}
5... O-O {[%clk 0:04:53]} 6. Nxe5 {[%clk 0:04:55]} 6... d6 {[%clk 0:04:49.4]} 7.
Nxc6 {[%clk 0:04:53.2]} 7... bxc6 {[%clk 0:04:49.3]} 8. Bxc6 {[%clk 0:04:53.1]}
8... Rb8 {[%clk 0:04:47.5]} 9. d4 {[%clk 0:04:53]} 9... Qe7 {[%clk 0:04:42.2]}
10. Bg5 {[%clk 0:04:52.9]} 10... Qxe4 {[%clk 0:04:41.2]} 11. Nxe4 {[%clk
0:04:51.7]} 1-0

[Event "Live Chess"]
[Site "Chess.com"]
[Date "2023.05.21"]
[Round "-"]
[White "LanceMaster23"]
[Black "Tushinskiy"]
[Result "1/2-1/2"]
[WhiteElo "1884"]
[BlackElo "2169"]
[TimeControl "300"]
[EndTime "17:12:44 PDT"]
[Termination "Game drawn by repetition"]

1. Nf3 {[%clk 0:04:58.9]} 1... d5 {[%clk 0:04:58.9]} 2. d4 {[%clk 0:04:58.5]}
2... c6 {[%clk 0:04:58.8]} 3. Bf4 {[%clk 0:04:57.4]} 3... Nf6 {[%clk 0:04:58.7]}
4. e3 {[%clk 0:04:57]} 4... e6 {[%clk 0:04:56.5]} 5. h3 {[%clk 0:04:56.4]} 5...
Bd6 {[%clk 0:04:56]} 6. Bxd6 {[%clk 0:04:55]} 6... Qxd6 {[%clk 0:04:55.9]} 7.
Nbd2 {[%clk 0:04:54]} 7... Nbd7 {[%clk 0:04:55.8]} 8. c3 {[%clk 0:04:53.1]} 8...
O-O {[%clk 0:04:54.7]} 9. Qc2 {[%clk 0:04:52.5]} 9... e5 {[%clk 0:04:54]} 10.
dxe5 {[%clk 0:04:52.3]} 10... Nxe5 {[%clk 0:04:53.6]} 11. Be2 {[%clk 0:04:51.7]}
11... Re8 {[%clk 0:04:51.8]} 12. Rd1 {[%clk 0:04:50.5]} 12... Nxf3+ {[%clk
0:04:46.9]} 13. Bxf3 {[%clk 0:04:49.8]} 13... Be6 {[%clk 0:04:42.5]} 14. O-O
{[%clk 0:04:48.5]} 14... Rad8 {[%clk 0:04:41.1]} 15. Rfe1 {[%clk 0:04:32.1]}
15... Qc7 {[%clk 0:04:33.9]} 16. Nb3 {[%clk 0:04:20.2]} 16... b6 {[%clk
0:04:28.5]} 17. Nd4 {[%clk 0:04:18.8]} 17... c5 {[%clk 0:04:27.2]} 18. Nxe6
{[%clk 0:04:17]} 18... fxe6 {[%clk 0:04:27.1]} 19. c4 {[%clk 0:04:07]} 19... d4
{[%clk 0:04:21.5]} 20. exd4 {[%clk 0:04:06.4]} 20... cxd4 {[%clk 0:04:21.4]} 21.
b4 {[%clk 0:03:37.9]} 21... e5 {[%clk 0:04:12.1]} 22. Be4 {[%clk 0:02:53.8]}
22... g6 {[%clk 0:04:06.7]} 23. Bd3 {[%clk 0:02:41.9]} 23... Kg7 {[%clk
0:04:04.9]} 24. Re2 {[%clk 0:02:32]} 24... Re7 {[%clk 0:04:02.9]} 25. Rde1
{[%clk 0:02:31.4]} 25... Rde8 {[%clk 0:04:02.2]} 26. f3 {[%clk 0:02:04.6]} 26...
Nh5 {[%clk 0:03:57]} 27. Re4 {[%clk 0:01:50.3]} 27... Qd6 {[%clk 0:03:53.9]} 28.
c5 {[%clk 0:01:46.4]} 28... bxc5 {[%clk 0:03:53.8]} 29. bxc5 {[%clk 0:01:46.3]}
29... Qf6 {[%clk 0:03:52.2]} 30. Qb3 {[%clk 0:01:20.7]} 30... Nf4 {[%clk
0:03:48.4]} 31. Bf1 {[%clk 0:01:05.9]} 31... Qg5 {[%clk 0:03:43.9]} 32. Kh2
{[%clk 0:01:05.2]} 32... Qf6 {[%clk 0:03:33]} 33. Qc4 {[%clk 0:00:52.7]} 33...
h5 {[%clk 0:03:30.9]} 34. g3 {[%clk 0:00:49.7]} 34... Ne6 {[%clk 0:03:23.8]} 35.
Rxe5 {[%clk 0:00:49]} 35... Qxf3 {[%clk 0:03:21.6]} 36. Rxe6 {[%clk 0:00:48.5]}
36... Rxe6 {[%clk 0:03:11.5]} 37. Rxe6 {[%clk 0:00:47.6]} 37... Rxe6 {[%clk
0:03:02.9]} 38. Qxe6 {[%clk 0:00:47.5]} 38... Qxf1 {[%clk 0:03:01.7]} 39. Qe5+
{[%clk 0:00:45]} 39... Kh7 {[%clk 0:03:00.2]} 40. Qxd4 {[%clk 0:00:44.4]} 40...
Qe2+ {[%clk 0:02:58]} 41. Kg1 {[%clk 0:00:44.1]} 41... Qxa2 {[%clk 0:02:56.5]}
42. Qd7+ {[%clk 0:00:41.2]} 42... Kh6 {[%clk 0:02:54.7]} 43. c6 {[%clk
0:00:40.7]} 43... Qb1+ {[%clk 0:02:53.4]} 44. Kg2 {[%clk 0:00:40.4]} 44... Qe4+
{[%clk 0:02:49.8]} 45. Kg1 {[%clk 0:00:40.1]} 45... Qe1+ {[%clk 0:02:48]} 46.
Kg2 {[%clk 0:00:39.4]} 46... Qe2+ {[%clk 0:02:41.5]} 47. Kg1 {[%clk 0:00:38.9]}
47... Qe1+ {[%clk 0:02:30.2]} 48. Kg2 {[%clk 0:00:38.5]} 48... Qe2+ {[%clk
0:02:28.6]} 49. Kg1 {[%clk 0:00:38]} 49... Qe1+ {[%clk 0:02:27.2]} 1/2-1/2

[Event "Live Chess"]
[Site "Chess.com"]
[Date "2023.05.21"]
[Round "-"]
[White "nigelst"]
[Black "Biranidun"]
[Result "1/2-1/2"]
[WhiteElo "1805"]
[BlackElo "2635"]
[TimeControl "300"]
[EndTime "17:12:46 PDT"]
[Termination "Game drawn by repetition"]

1. e4 {[%clk 0:04:57.5]} 1... c5 {[%clk 0:04:59.2]} 2. Nf3 {[%clk 0:04:55.5]}
2... d6 {[%clk 0:04:58.8]} 3. Bb5+ {[%clk 0:04:52.9]} 3... Nd7 {[%clk
0:04:57.9]} 4. Ba4 {[%clk 0:04:49.7]} 4... Nf6 {[%clk 0:04:56.6]} 5. Qe2 {[%clk
0:04:45.7]} 5... a6 {[%clk 0:04:55]} 6. c3 {[%clk 0:04:43.5]} 6... b5 {[%clk
0:04:54.1]} 7. Bc2 {[%clk 0:04:42.5]} 7... Bb7 {[%clk 0:04:53.7]} 8. O-O {[%clk
0:04:38.7]} 8... e6 {[%clk 0:04:53.1]} 9. d4 {[%clk 0:04:33.9]} 9... Be7 {[%clk
0:04:52.4]} 10. Bg5 {[%clk 0:04:24.7]} 10... h6 {[%clk 0:04:51.2]} 11. Bh4
{[%clk 0:04:23.5]} 11... Qc7 {[%clk 0:04:48.4]} 12. Bg3 {[%clk 0:04:22.2]} 12...
Nh5 {[%clk 0:04:46.7]} 13. Nbd2 {[%clk 0:04:03.2]} 13... Nxg3 {[%clk 0:04:43.7]}
14. hxg3 {[%clk 0:04:01.1]} 14... cxd4 {[%clk 0:04:43.6]} 15. Nxd4 {[%clk
0:03:58.5]} 15... O-O {[%clk 0:04:36.8]} 16. Qd3 {[%clk 0:03:54.8]} 16... Ne5
{[%clk 0:04:33.3]} 17. Qe2 {[%clk 0:03:52.3]} 17... Rac8 {[%clk 0:04:27]} 18. f4
{[%clk 0:03:48.7]} 18... Nc4 {[%clk 0:04:21.3]} 19. Nxc4 {[%clk 0:03:45.7]}
19... Qxc4 {[%clk 0:04:21.2]} 20. Qf2 {[%clk 0:03:35.3]} 20... Qc5 {[%clk
0:04:13.4]} 21. f5 {[%clk 0:03:31.6]} 21... e5 {[%clk 0:04:07]} 22. Nf3 {[%clk
0:03:17]} 22... b4 {[%clk 0:04:04.2]} 23. Qxc5 {[%clk 0:03:08.3]} 23... Rxc5
{[%clk 0:04:04.1]} 24. Bd3 {[%clk 0:02:55.9]} 24... bxc3 {[%clk 0:04:01.2]} 25.
bxc3 {[%clk 0:02:45.3]} 25... Rxc3 {[%clk 0:04:01.1]} 26. Rfd1 {[%clk
0:02:40.3]} 26... Rfc8 {[%clk 0:03:39.5]} 27. Rab1 {[%clk 0:02:35.9]} 27... R8c7
{[%clk 0:03:30.7]} 28. g4 {[%clk 0:02:26]} 28... f6 {[%clk 0:03:21.7]} 29. Nh4
{[%clk 0:02:22.4]} 29... d5 {[%clk 0:03:19.8]} 30. exd5 {[%clk 0:02:11.4]} 30...
Bc5+ {[%clk 0:03:14.7]} 31. Kh2 {[%clk 0:02:09]} 31... Bxd5 {[%clk 0:02:59.8]}
32. Bxa6 {[%clk 0:02:00]} 32... Bd4 {[%clk 0:02:58.4]} 33. Rb8+ {[%clk 0:01:48]}
33... Kh7 {[%clk 0:02:37.2]} 34. Ng6 {[%clk 0:01:46.5]} 34... Bg8 {[%clk
0:02:36.3]} 35. Nf8+ {[%clk 0:01:38.4]} 35... Kh8 {[%clk 0:02:35.5]} 36. Ng6+
{[%clk 0:01:37.2]} 36... Kh7 {[%clk 0:02:34.9]} 37. Nf8+ {[%clk 0:01:34]} 37...
Kh8 {[%clk 0:02:34.4]} 38. Ng6+ {[%clk 0:01:33.2]} 38... Kh7 {[%clk 0:02:34.1]}
1/2-1/2

[Event "Live Chess"]
[Site "Chess.com"]
[Date "2023.05.21"]
[Round "-"]
[White "stevochess11"]
[Black "therealab0ne"]
[Result "1-0"]
[WhiteElo "1794"]
[BlackElo "708"]
[TimeControl "300"]
[EndTime "17:12:57 PDT"]
[Termination "stevochess11 won by resignation"]

1. d4 {[%clk 0:04:57.9]} 1... d5 {[%clk 0:04:58.3]} 2. Nf3 {[%clk 0:04:57.1]}
2... e6 {[%clk 0:04:55.6]} 3. e3 {[%clk 0:04:55.8]} 3... Nf6 {[%clk 0:04:50.2]}
4. Bd3 {[%clk 0:04:53.9]} 4... Nc6 {[%clk 0:04:33.1]} 5. c3 {[%clk 0:04:49.3]}
5... b6 {[%clk 0:04:32.1]} 6. Ne5 {[%clk 0:04:46.1]} 6... Nxe5 {[%clk
0:04:29.9]} 7. dxe5 {[%clk 0:04:46]} 7... Nd7 {[%clk 0:04:28.1]} 8. f4 {[%clk
0:04:44.7]} 8... f6 {[%clk 0:04:26.5]} 9. Qg4 {[%clk 0:04:42.1]} 9... Nc5 {[%clk
0:04:03.5]} 10. Bc2 {[%clk 0:04:35.8]} 10... f5 {[%clk 0:03:51]} 11. Qh5+ {[%clk
0:04:30.6]} 11... g6 {[%clk 0:03:46.4]} 12. Qf3 {[%clk 0:04:29]} 12... Bb7
{[%clk 0:03:42.3]} 13. O-O {[%clk 0:04:11.3]} 13... Bg7 {[%clk 0:03:12.2]} 14.
b4 {[%clk 0:03:59.6]} 14... Nd7 {[%clk 0:03:04.7]} 15. Nd2 {[%clk 0:03:57.8]}
15... Bxe5 {[%clk 0:03:03.2]} 16. fxe5 {[%clk 0:03:55.9]} 16... Nxe5 {[%clk
0:03:02.6]} 17. Qg3 {[%clk 0:03:51.7]} 17... Qd6 {[%clk 0:02:56]} 18. Nb3 {[%clk
0:03:44.9]} 18... O-O-O {[%clk 0:02:40.6]} 19. Nd4 {[%clk 0:03:39.8]} 19... a6
{[%clk 0:02:38.4]} 20. a4 {[%clk 0:03:29.5]} 20... Ng4 {[%clk 0:02:07.7]} 21.
Qxd6 {[%clk 0:03:25.8]} 21... Rxd6 {[%clk 0:02:05.3]} 22. Bd1 {[%clk 0:03:17]}
22... Rf8 {[%clk 0:01:59.7]} 23. Bxg4 {[%clk 0:03:13.8]} 1-0